[Event "Titled Tuesday Blitz April 4 Late 2023"]
[White "Baskakov, Egor"]
[Black "Gontcharov, Vladislav"]
[WhiteFideId "24197866"]
[BlackFideId "4123492"]
[WhiteElo "2212"]
[BlackElo "2420"]
[Result "0-1"]
[Round "07"]
[TimeControl "180+2"]
[Date "2023.04.04"]
[WhiteClock "0:00:06"]
[BlackClock "0:00:16"]

1. e4 {[%clk 0:02:57]}  e6 {[%clk 0:02:59]} 2. Nc3 {[%clk 0:02:55]}  d5 {[%clk 0:02:58]} 3. g3 {[%clk 0:02:55]}  Nf6 {[%clk 0:02:57]} 4. Bg2 {[%clk 0:02:55]}  dxe4 {[%clk 0:02:56]} 5. Nxe4 {[%clk 0:02:55]}  Nxe4 {[%clk 0:02:56]} 6. Bxe4 {[%clk 0:02:56]}  Bc5 {[%clk 0:02:52]} 7. Ne2 {[%clk 0:02:54]}  e5 {[%clk 0:02:43]} 8. Bg2 {[%clk 0:02:54]}  c6 {[%clk 0:02:39]} 9. O-O {[%clk 0:02:54]}  Bg4 {[%clk 0:02:27]} 10. h3 {[%clk 0:02:51]}  Bh5 {[%clk 0:02:22]} 11. d3 {[%clk 0:02:50]}  Nd7 {[%clk 0:02:17]} 12. d4 {[%clk 0:02:46]}  Bxe2 {[%clk 0:02:04]} 13. Qxe2 {[%clk 0:02:45]}  Bxd4 {[%clk 0:02:04]} 14. Rd1 {[%clk 0:02:41]}  O-O {[%clk 0:01:55]} 15. c3 {[%clk 0:02:41]}  Bb6 {[%clk 0:01:55]} 16. Qg4 {[%clk 0:02:41]}  Qf6 {[%clk 0:01:27]} 17. Kh2 {[%clk 0:01:28]}  Nc5 {[%clk 0:01:22]} 18. Be3 {[%clk 0:01:13]}  Ne6 {[%clk 0:01:21]} 19. Qe4 {[%clk 0:01:11]}  Bxe3 {[%clk 0:01:18]} 20. Qxe3 {[%clk 0:01:12]}  h6 {[%clk 0:01:16]} 21. h4 {[%clk 0:01:11]}  g5 {[%clk 0:00:59]} 22. hxg5 {[%clk 0:01:07]}  Nxg5 {[%clk 0:00:55]} 23. Rd7 {[%clk 0:01:03]}  b6 {[%clk 0:00:53]} 24. Rad1 {[%clk 0:01:03]}  Rfe8 {[%clk 0:00:50]} 25. R7d6 {[%clk 0:00:56]}  Re6 {[%clk 0:00:50]} 26. Rd7 {[%clk 0:00:51]}  e4 {[%clk 0:00:47]} 27. Qd4 {[%clk 0:00:47]}  c5 {[%clk 0:00:42]} 28. Qxf6 {[%clk 0:00:38]}  Rxf6 {[%clk 0:00:41]} 29. Kg1 {[%clk 0:00:38]}  Nf3+ {[%clk 0:00:35]} 30. Bxf3 {[%clk 0:00:37]}  exf3 {[%clk 0:00:35]} 31. Re7 {[%clk 0:00:36]}  a5 {[%clk 0:00:33]} 32. a4 {[%clk 0:00:35]}  Rb8 {[%clk 0:00:31]} 33. c4 {[%clk 0:00:33]}  Kf8 {[%clk 0:00:30]} 34. Re4 {[%clk 0:00:28]}  Re8 {[%clk 0:00:30]} 35. Rxe8+ {[%clk 0:00:22]}  Kxe8 {[%clk 0:00:29]} 36. Rd3 {[%clk 0:00:23]}  Kf8 {[%clk 0:00:21]} 37. Kh2 {[%clk 0:00:21]}  h5 {[%clk 0:00:21]} 38. Kh3 {[%clk 0:00:21]}  Kg7 {[%clk 0:00:21]} 39. Kh4 {[%clk 0:00:20]}  Kg6 {[%clk 0:00:21]} 40. Rd5 {[%clk 0:00:20]}  Re6 {[%clk 0:00:19]} 41. Rg5+ {[%clk 0:00:19]}  Kf6 {[%clk 0:00:19]} 42. Rd5 {[%clk 0:00:11]}  Re2 {[%clk 0:00:19]} 43. Rd6+ {[%clk 0:00:12]}  Kg7 {[%clk 0:00:19]} 44. Rxb6 {[%clk 0:00:10]}  Rxf2 {[%clk 0:00:19]} 45. Kg5 {[%clk 0:00:10]}  Rg2 {[%clk 0:00:17]} 46. Rf6 {[%clk 0:00:04]}  Rxg3+ {[%clk 0:00:17]} 47. Kh4 {[%clk 0:00:05]}  Kxf6 {[%clk 0:00:16]} 48. Kxg3 {[%clk 0:00:05]}  Ke5 {[%clk 0:00:16]} 49. Kxf3 {[%clk 0:00:06]}  Kd4 {[%clk 0:00:16]} 50. b3 {[%clk 0:00:06]}  Kc3 {[%clk 0:00:16]} 0-1


[Site "https://www.chess.com"]

[Event "Titled Tuesday Blitz April 4 Late 2023"]
[White "tuschessCM1"]
[Black "Fiorito, Joaquin"]
[BlackFideId "180173"]
[WhiteElo "2731"]
[BlackElo "2157"]
[Result "1-0"]
[Round "07"]
[TimeControl "180+2"]
[Date "2023.04.04"]
[WhiteClock "0:01:41"]
[BlackClock "0:00:02"]

1. c4 {[%clk 0:03:00]}  Nf6 {[%clk 0:02:59]} 2. Nc3 {[%clk 0:03:00]}  e6 {[%clk 0:02:58]} 3. e4 {[%clk 0:03:00]}  d5 {[%clk 0:02:58]} 4. cxd5 {[%clk 0:03:00]}  exd5 {[%clk 0:02:57]} 5. e5 {[%clk 0:03:01]}  d4 {[%clk 0:02:51]} 6. exf6 {[%clk 0:03:02]}  dxc3 {[%clk 0:02:51]} 7. dxc3 {[%clk 0:03:02]}  Qxf6 {[%clk 0:02:39]} 8. Nf3 {[%clk 0:03:02]}  Bd6 {[%clk 0:02:36]} 9. Be2 {[%clk 0:03:01]}  O-O {[%clk 0:02:33]} 10. O-O {[%clk 0:03:02]}  h6 {[%clk 0:02:29]} 11. h3 {[%clk 0:03:00]}  Nc6 {[%clk 0:02:29]} 12. Be3 {[%clk 0:03:00]}  Bf5 {[%clk 0:02:23]} 13. Bd3 {[%clk 0:02:57]}  Rad8 {[%clk 0:02:22]} 14. Nd4 {[%clk 0:02:51]}  Nxd4 {[%clk 0:02:13]} 15. Bxd4 {[%clk 0:02:51]}  Be5 {[%clk 0:02:12]} 16. Bxf5 {[%clk 0:02:35]}  Qxf5 {[%clk 0:02:03]} 17. Qb3 {[%clk 0:02:26]}  Bxd4 {[%clk 0:02:02]} 18. cxd4 {[%clk 0:02:27]}  Qd5 {[%clk 0:01:55]} 19. Rfc1 {[%clk 0:02:26]}  Qa5 {[%clk 0:00:20]} 20. Qxb7 {[%clk 0:02:20]}  Rxd4 {[%clk 0:00:20]} 21. Rxc7 {[%clk 0:02:20]}  Rb4 {[%clk 0:00:12]} 22. Qxa7 {[%clk 0:02:19]}  Qf5 {[%clk 0:00:13]} 23. b3 {[%clk 0:02:16]}  Qe5 {[%clk 0:00:12]} 24. Rac1 {[%clk 0:02:11]}  Re4 {[%clk 0:00:11]} 25. Qc5 {[%clk 0:02:02]}  Qb2 {[%clk 0:00:09]} 26. Qc2 {[%clk 0:02:00]}  Qe5 {[%clk 0:00:06]} 27. Rc4 {[%clk 0:01:56]}  Re2 {[%clk 0:00:05]} 28. Qb1 {[%clk 0:01:53]}  Qf6 {[%clk 0:00:05]} 29. Rf1 {[%clk 0:01:52]}  Rfe8 {[%clk 0:00:04]} 30. a4 {[%clk 0:01:51]}  Qd6 {[%clk 0:00:03]} 31. Qf5 {[%clk 0:01:48]}  Qb6 {[%clk 0:00:02]} 32. Qd3 {[%clk 0:01:41]} 1-0


[Site "https://www.chess.com"]

[Event "Titled Tuesday Blitz April 4 Late 2023"]
[White "Kim, Sergey"]
[Black "Sieciechowicz, Marcin"]
[WhiteFideId "13700570"]
[BlackFideId "1130170"]
[WhiteElo "2534"]
[BlackElo "2302"]
[Result "0-1"]
[Round "07"]
[TimeControl "180+2"]
[Date "2023.04.04"]
[WhiteClock "0:00:11"]
[BlackClock "0:00:07"]

1. d4 {[%clk 0:03:00]}  Nf6 {[%clk 0:02:59]} 2. c4 {[%clk 0:03:01]}  g6 {[%clk 0:02:56]} 3. Nc3 {[%clk 0:03:01]}  Bg7 {[%clk 0:02:55]} 4. e4 {[%clk 0:03:00]}  d6 {[%clk 0:02:55]} 5. Nge2 {[%clk 0:03:00]}  O-O {[%clk 0:02:54]} 6. Ng3 {[%clk 0:03:00]}  c5 {[%clk 0:02:50]} 7. d5 {[%clk 0:03:00]}  e6 {[%clk 0:02:49]} 8. Be2 {[%clk 0:03:00]}  exd5 {[%clk 0:02:49]} 9. cxd5 {[%clk 0:03:01]}  a6 {[%clk 0:02:48]} 10. a4 {[%clk 0:03:00]}  h5 {[%clk 0:02:48]} 11. Bg5 {[%clk 0:02:59]}  Qe8 {[%clk 0:02:46]} 12. Qd2 {[%clk 0:02:54]}  Nh7 {[%clk 0:02:46]} 13. Bf4 {[%clk 0:02:54]}  Be5 {[%clk 0:02:37]} 14. O-O {[%clk 0:02:45]}  h4 {[%clk 0:02:35]} 15. Nh1 {[%clk 0:02:40]}  Nd7 {[%clk 0:02:31]} 16. f3 {[%clk 0:02:38]}  f5 {[%clk 0:02:12]} 17. Bh6 {[%clk 0:02:31]}  Rf7 {[%clk 0:01:56]} 18. exf5 {[%clk 0:02:24]}  gxf5 {[%clk 0:01:51]} 19. Bf4 {[%clk 0:02:09]}  Ndf6 {[%clk 0:01:43]} 20. Rae1 {[%clk 0:02:01]}  Bd4+ {[%clk 0:01:30]} 21. Nf2 {[%clk 0:02:00]}  Qf8 {[%clk 0:01:30]} 22. Be3 {[%clk 0:01:55]}  Bxe3 {[%clk 0:01:23]} 23. Qxe3 {[%clk 0:01:55]}  Bd7 {[%clk 0:01:24]} 24. Nh3 {[%clk 0:01:49]}  Qe7 {[%clk 0:01:12]} 25. Qh6 {[%clk 0:01:35]}  Re8 {[%clk 0:01:04]} 26. Qxh4 {[%clk 0:01:33]}  Qe3+ {[%clk 0:00:30]} 27. Kh1 {[%clk 0:01:26]}  Qd2 {[%clk 0:00:30]} 28. Qc4 {[%clk 0:01:02]}  Qxb2 {[%clk 0:00:29]} 29. Rb1 {[%clk 0:01:00]}  Qd2 {[%clk 0:00:26]} 30. Nf4 {[%clk 0:00:38]}  Qd4 {[%clk 0:00:24]} 31. Rxb7 {[%clk 0:00:32]}  Bc8 {[%clk 0:00:17]} 32. Rxf7 {[%clk 0:00:27]}  Kxf7 {[%clk 0:00:18]} 33. Bd3 {[%clk 0:00:17]}  Re3 {[%clk 0:00:16]} 34. Qxd4 {[%clk 0:00:14]}  cxd4 {[%clk 0:00:17]} 35. Nce2 {[%clk 0:00:14]}  Nh5 {[%clk 0:00:15]} 36. g3 {[%clk 0:00:11]}  a5 {[%clk 0:00:14]} 37. Rc1 {[%clk 0:00:10]}  Bd7 {[%clk 0:00:13]} 38. Rc7 {[%clk 0:00:10]}  Ke8 {[%clk 0:00:13]} 39. Kg2 {[%clk 0:00:11]}  Nxf4+ {[%clk 0:00:12]} 40. Nxf4 {[%clk 0:00:10]}  Re1 {[%clk 0:00:12]} 41. Kf2 {[%clk 0:00:10]}  Ra1 {[%clk 0:00:12]} 42. Bb5 {[%clk 0:00:10]}  Bxb5 {[%clk 0:00:10]} 43. axb5 {[%clk 0:00:11]}  Rb1 {[%clk 0:00:11]} 44. Rxh7 {[%clk 0:00:10]}  Rb2+ {[%clk 0:00:09]} 45. Kg1 {[%clk 0:00:10]}  Rxb5 {[%clk 0:00:06]} 46. Ra7 {[%clk 0:00:11]}  Kd8 {[%clk 0:00:06]} 47. h4 {[%clk 0:00:11]}  Kc8 {[%clk 0:00:06]} 48. h5 {[%clk 0:00:11]}  Kb8 {[%clk 0:00:07]} 49. Ra6 {[%clk 0:00:11]}  Kb7 {[%clk 0:00:07]} 50. Rxd6 {[%clk 0:00:11]}  a4 {[%clk 0:00:07]} 51. Re6 {[%clk 0:00:11]}  a3 {[%clk 0:00:08]} 52. Re1 {[%clk 0:00:11]}  a2 {[%clk 0:00:08]} 53. h6 {[%clk 0:00:11]}  Rb1 {[%clk 0:00:08]} 54. Nd3 {[%clk 0:00:11]}  Rxe1+ {[%clk 0:00:08]} 55. Nxe1 {[%clk 0:00:11]}  a1=Q {[%clk 0:00:08]} 56. Kf1 {[%clk 0:00:11]}  Qa6+ {[%clk 0:00:06]} 57. Kf2 {[%clk 0:00:11]}  Qxh6 {[%clk 0:00:07]} 58. Nd3 {[%clk 0:00:11]}  Qe3+ {[%clk 0:00:07]} 0-1


[Site "https://www.chess.com"]

[Event "Titled Tuesday Blitz April 4 Late 2023"]
[White "Martins, Bruno Andre Leite"]
[Black "liwadas82"]
[WhiteFideId "1942255"]
[WhiteElo "2240"]
[BlackElo "2481"]
[Result "1-0"]
[Round "07"]
[TimeControl "180+2"]
[Date "2023.04.04"]
[WhiteClock "0:00:03"]
[BlackClock "0:00:01"]

1. e4 {[%clk 0:03:00]}  e5 {[%clk 0:02:59]} 2. Nf3 {[%clk 0:03:01]}  Nc6 {[%clk 0:02:58]} 3. Nc3 {[%clk 0:03:00]}  Nf6 {[%clk 0:02:58]} 4. a3 {[%clk 0:03:00]}  g6 {[%clk 0:02:51]} 5. d4 {[%clk 0:02:50]}  exd4 {[%clk 0:02:49]} 6. Nxd4 {[%clk 0:02:51]}  Bg7 {[%clk 0:02:48]} 7. Be3 {[%clk 0:02:36]}  O-O {[%clk 0:02:46]} 8. Nxc6 {[%clk 0:02:33]}  bxc6 {[%clk 0:02:45]} 9. Be2 {[%clk 0:02:31]}  Re8 {[%clk 0:02:38]} 10. Bf3 {[%clk 0:02:30]}  Ba6 {[%clk 0:02:29]} 11. g4 {[%clk 0:02:13]}  d6 {[%clk 0:02:07]} 12. g5 {[%clk 0:01:59]}  Nd7 {[%clk 0:02:06]} 13. h4 {[%clk 0:01:52]}  Rb8 {[%clk 0:02:02]} 14. Qc1 {[%clk 0:01:25]}  Ne5 {[%clk 0:01:59]} 15. Be2 {[%clk 0:01:19]}  Bxe2 {[%clk 0:01:57]} 16. Nxe2 {[%clk 0:01:20]}  Nc4 {[%clk 0:01:43]} 17. c3 {[%clk 0:00:47]}  Nxb2 {[%clk 0:01:32]} 18. Qc2 {[%clk 0:00:45]}  Nc4 {[%clk 0:01:31]} 19. Bd4 {[%clk 0:00:41]}  Rb2 {[%clk 0:01:21]} 20. Qd3 {[%clk 0:00:40]}  d5 {[%clk 0:01:20]} 21. Bxg7 {[%clk 0:00:36]}  Kxg7 {[%clk 0:01:10]} 22. Ng3 {[%clk 0:00:30]}  dxe4 {[%clk 0:00:44]} 23. Qd4+ {[%clk 0:00:16]}  Qxd4 {[%clk 0:00:38]} 24. cxd4 {[%clk 0:00:17]}  e3 {[%clk 0:00:34]} 25. O-O {[%clk 0:00:16]}  e2 {[%clk 0:00:20]} 26. Rfe1 {[%clk 0:00:13]}  Rd2 {[%clk 0:00:19]} 27. Kg2 {[%clk 0:00:10]}  Nb2 {[%clk 0:00:19]} 28. Kf3 {[%clk 0:00:09]}  Rd3+ {[%clk 0:00:17]} 29. Kg2 {[%clk 0:00:09]}  Rxd4 {[%clk 0:00:15]} 30. Rxe2 {[%clk 0:00:06]}  Rxe2 {[%clk 0:00:15]} 31. Nxe2 {[%clk 0:00:07]}  Rxh4 {[%clk 0:00:15]} 32. Rb1 {[%clk 0:00:07]}  Nd3 {[%clk 0:00:12]} 33. Rb7 {[%clk 0:00:05]}  Rg4+ {[%clk 0:00:11]} 34. Ng3 {[%clk 0:00:05]}  Rxg5 {[%clk 0:00:10]} 35. Rxa7 {[%clk 0:00:05]}  h5 {[%clk 0:00:10]} 36. Kf3 {[%clk 0:00:04]}  h4 {[%clk 0:00:04]} 37. Ne4 {[%clk 0:00:05]}  Ne1+ {[%clk 0:00:01]} 38. Ke2 {[%clk 0:00:03]} 1-0


[Site "https://www.chess.com"]

[Event "Titled Tuesday Blitz April 4 Late 2023"]
[White "Srinath, Rao S.V."]
[Black "Jimenez Jimenez, Leandro"]
[WhiteFideId "5028876"]
[BlackFideId "6415253"]
[WhiteElo "2196"]
[BlackElo "2263"]
[Result "1-0"]
[Round "07"]
[TimeControl "180+2"]
[Date "2023.04.04"]
[WhiteClock "0:00:07"]
[BlackClock "0:00:09"]

1. d4 {[%clk 0:03:00]}  d5 {[%clk 0:02:58]} 2. Nc3 {[%clk 0:02:59]}  Nf6 {[%clk 0:02:52]} 3. Bf4 {[%clk 0:02:59]}  c5 {[%clk 0:02:51]} 4. e3 {[%clk 0:02:58]}  a6 {[%clk 0:02:50]} 5. Nf3 {[%clk 0:02:54]}  Nc6 {[%clk 0:02:50]} 6. Ne5 {[%clk 0:02:49]}  Bf5 {[%clk 0:02:33]} 7. g4 {[%clk 0:02:44]}  Bd7 {[%clk 0:02:30]} 8. g5 {[%clk 0:02:43]}  cxd4 {[%clk 0:02:23]} 9. exd4 {[%clk 0:02:31]}  Ne4 {[%clk 0:02:17]} 10. Nxe4 {[%clk 0:02:15]}  dxe4 {[%clk 0:02:17]} 11. Bc4 {[%clk 0:01:50]}  e6 {[%clk 0:01:56]} 12. Qd2 {[%clk 0:01:30]}  Be7 {[%clk 0:01:41]} 13. h4 {[%clk 0:01:15]}  f6 {[%clk 0:01:18]} 14. gxf6 {[%clk 0:01:05]}  gxf6 {[%clk 0:01:19]} 15. Qe2 {[%clk 0:00:51]}  Nxe5 {[%clk 0:00:46]} 16. dxe5 {[%clk 0:00:43]}  Qa5+ {[%clk 0:00:45]} 17. c3 {[%clk 0:00:42]}  O-O-O {[%clk 0:00:38]} 18. O-O-O {[%clk 0:00:34]}  f5 {[%clk 0:00:36]} 19. Rd2 {[%clk 0:00:22]}  Kb8 {[%clk 0:00:22]} 20. Rhd1 {[%clk 0:00:21]}  Bc8 {[%clk 0:00:22]} 21. Kb1 {[%clk 0:00:15]}  Bxh4 {[%clk 0:00:18]} 22. Rd6 {[%clk 0:00:14]}  Be7 {[%clk 0:00:16]} 23. Bxe6 {[%clk 0:00:08]}  Bxd6 {[%clk 0:00:16]} 24. Bxc8 {[%clk 0:00:07]}  Kxc8 {[%clk 0:00:14]} 25. exd6 {[%clk 0:00:06]}  Qb5 {[%clk 0:00:11]} 26. Qe3 {[%clk 0:00:05]}  b6 {[%clk 0:00:09]} 27. Qd4 {[%clk 0:00:05]}  Rd7 {[%clk 0:00:07]} 28. Qxh8+ {[%clk 0:00:04]}  Kb7 {[%clk 0:00:08]} 29. Qd4 {[%clk 0:00:04]}  a5 {[%clk 0:00:07]} 30. Qd5+ {[%clk 0:00:04]}  Qxd5 {[%clk 0:00:07]} 31. Rxd5 {[%clk 0:00:05]}  Kc6 {[%clk 0:00:08]} 32. Rxf5 {[%clk 0:00:05]}  Rxd6 {[%clk 0:00:09]} 33. Bxd6 {[%clk 0:00:05]}  Kxd6 {[%clk 0:00:10]} 34. Rf6+ {[%clk 0:00:05]}  Ke5 {[%clk 0:00:11]} 35. Rh6 {[%clk 0:00:06]}  Kf4 {[%clk 0:00:10]} 36. Rxh7 {[%clk 0:00:06]}  Kf3 {[%clk 0:00:11]} 37. Rf7+ {[%clk 0:00:07]}  Ke2 {[%clk 0:00:12]} 38. Kc2 {[%clk 0:00:06]}  b5 {[%clk 0:00:11]} 39. b4 {[%clk 0:00:05]}  a4 {[%clk 0:00:11]} 40. Rf5 {[%clk 0:00:05]}  Ke1 {[%clk 0:00:10]} 41. Rxb5 {[%clk 0:00:05]}  Kxf2 {[%clk 0:00:09]} 42. Re5 {[%clk 0:00:05]}  e3 {[%clk 0:00:09]} 43. Kd3 {[%clk 0:00:06]}  e2 {[%clk 0:00:09]} 44. Rxe2+ {[%clk 0:00:06]}  Kf3 {[%clk 0:00:09]} 45. b5 {[%clk 0:00:07]} 1-0


[Site "https://www.chess.com"]

[Event "Titled Tuesday Blitz April 4 Late 2023"]
[White "Meunier-Pion, Jean"]
[Black "Pakleza, Zbigniew"]
[WhiteFideId "20685327"]
[BlackFideId "1119290"]
[WhiteElo "2124"]
[BlackElo "2410"]
[Result "0-1"]
[Round "07"]
[TimeControl "180+2"]
[Date "2023.04.04"]
[WhiteClock "0:02:14"]
[BlackClock "0:02:41"]

1. e4 {[%clk 0:03:00]}  d5 {[%clk 0:02:59]} 2. exd5 {[%clk 0:03:01]}  Nf6 {[%clk 0:03:00]} 3. d4 {[%clk 0:03:01]}  Nxd5 {[%clk 0:03:00]} 4. c4 {[%clk 0:03:01]}  Nb6 {[%clk 0:03:00]} 5. Nf3 {[%clk 0:03:02]}  Bg4 {[%clk 0:03:00]} 6. Be3 {[%clk 0:02:59]}  e5 {[%clk 0:02:57]} 7. h3 {[%clk 0:02:52]}  Bxf3 {[%clk 0:02:54]} 8. Qxf3 {[%clk 0:02:53]}  exd4 {[%clk 0:02:55]} 9. Qxb7 {[%clk 0:02:53]}  dxe3 {[%clk 0:02:54]} 10. Qe4+ {[%clk 0:02:44]}  Qe7 {[%clk 0:02:52]} 11. Qb7 {[%clk 0:02:36]}  Qb4+ {[%clk 0:02:45]} 12. Nc3 {[%clk 0:02:24]}  Qxb2 {[%clk 0:02:43]} 13. Nb5 {[%clk 0:02:14]}  Qd2# {[%clk 0:02:41]} 0-1


[Site "https://www.chess.com"]

[Event "Titled Tuesday Blitz April 4 Late 2023"]
[White "Bilych, Olexiy"]
[Black "Goffredo_Fofi"]
[WhiteFideId "14156504"]
[WhiteElo "2320"]
[BlackElo "2507"]
[Result "1-0"]
[Round "07"]
[TimeControl "180+2"]
[Date "2023.04.04"]
[WhiteClock "0:00:35"]
[BlackClock "0:00:03"]

1. d4 {[%clk 0:03:00]}  Nf6 {[%clk 0:02:59]} 2. c4 {[%clk 0:03:01]}  g6 {[%clk 0:02:59]} 3. Nc3 {[%clk 0:03:01]}  Bg7 {[%clk 0:03:00]} 4. e4 {[%clk 0:03:02]}  O-O {[%clk 0:03:01]} 5. Be2 {[%clk 0:03:00]}  d6 {[%clk 0:03:01]} 6. Nf3 {[%clk 0:02:59]}  e5 {[%clk 0:03:00]} 7. O-O {[%clk 0:02:59]}  Nc6 {[%clk 0:03:00]} 8. d5 {[%clk 0:02:59]}  Ne7 {[%clk 0:03:01]} 9. b4 {[%clk 0:02:59]}  a5 {[%clk 0:03:00]} 10. bxa5 {[%clk 0:02:57]}  Rxa5 {[%clk 0:03:00]} 11. a4 {[%clk 0:02:58]}  c5 {[%clk 0:02:58]} 12. Nd2 {[%clk 0:02:43]}  Ne8 {[%clk 0:02:57]} 13. Nb3 {[%clk 0:02:42]}  Ra6 {[%clk 0:02:58]} 14. Nb5 {[%clk 0:02:40]}  f5 {[%clk 0:02:57]} 15. exf5 {[%clk 0:02:25]}  Nxf5 {[%clk 0:02:49]} 16. Bg4 {[%clk 0:02:21]}  Nf6 {[%clk 0:02:47]} 17. Bh3 {[%clk 0:02:18]}  Nh5 {[%clk 0:01:40]} 18. Re1 {[%clk 0:01:59]}  Nf4 {[%clk 0:01:40]} 19. Bxf4 {[%clk 0:01:55]}  exf4 {[%clk 0:01:41]} 20. Ra2 {[%clk 0:01:54]}  Be5 {[%clk 0:01:31]} 21. Nxc5 {[%clk 0:01:49]}  dxc5 {[%clk 0:01:20]} 22. Rxe5 {[%clk 0:01:46]}  f3 {[%clk 0:01:20]} 23. Qxf3 {[%clk 0:01:28]}  Nd4 {[%clk 0:01:19]} 24. Qe3 {[%clk 0:01:21]}  Bxh3 {[%clk 0:01:16]} 25. Qxh3 {[%clk 0:01:21]}  Qf6 {[%clk 0:01:16]} 26. Re1 {[%clk 0:01:18]}  Rxa4 {[%clk 0:01:16]} 27. Rd2 {[%clk 0:01:11]}  Rxc4 {[%clk 0:01:11]} 28. Nc7 {[%clk 0:00:58]}  Rc3 {[%clk 0:01:03]} 29. Qd7 {[%clk 0:00:53]}  Nf3+ {[%clk 0:00:44]} 30. gxf3 {[%clk 0:00:46]}  Qg5+ {[%clk 0:00:44]} 31. Kf1 {[%clk 0:00:36]}  Qxd2 {[%clk 0:00:44]} 32. Ne6 {[%clk 0:00:36]}  Qh6 {[%clk 0:00:03]} 33. Nxf8 {[%clk 0:00:35]}  Qxf8 {[%clk 0:00:03]} 34. Re8 {[%clk 0:00:35]} 1-0


[Site "https://www.chess.com"]

[Event "Titled Tuesday Blitz April 4 Late 2023"]
[White "Mei, Austin"]
[Black "Adewumi, Tanitoluwa"]
[WhiteFideId "30948479"]
[BlackFideId "30966396"]
[WhiteElo "2125"]
[BlackElo "2705"]
[Result "0-1"]
[Round "07"]
[TimeControl "180+2"]
[Date "2023.04.04"]
[WhiteClock "0:00:01"]
[BlackClock "0:00:03"]

1. e4 {[%clk 0:03:00]}  c5 {[%clk 0:02:56]} 2. Nf3 {[%clk 0:02:57]}  e6 {[%clk 0:02:52]} 3. d4 {[%clk 0:02:57]}  cxd4 {[%clk 0:02:52]} 4. Nxd4 {[%clk 0:02:58]}  Nc6 {[%clk 0:02:49]} 5. Nc3 {[%clk 0:02:58]}  Qc7 {[%clk 0:02:50]} 6. a3 {[%clk 0:02:47]}  a6 {[%clk 0:02:44]} 7. Be3 {[%clk 0:02:48]}  Nf6 {[%clk 0:02:42]} 8. f4 {[%clk 0:02:48]}  d5 {[%clk 0:02:23]} 9. e5 {[%clk 0:02:47]}  Nd7 {[%clk 0:02:20]} 10. Be2 {[%clk 0:02:22]}  Bc5 {[%clk 0:02:14]} 11. Qd2 {[%clk 0:02:21]}  b5 {[%clk 0:02:01]} 12. Nb3 {[%clk 0:02:20]}  Bxe3 {[%clk 0:01:52]} 13. Qxe3 {[%clk 0:02:21]}  b4 {[%clk 0:01:52]} 14. axb4 {[%clk 0:02:05]}  Nxb4 {[%clk 0:01:52]} 15. Bd3 {[%clk 0:02:05]}  Bb7 {[%clk 0:01:37]} 16. O-O {[%clk 0:01:55]}  O-O {[%clk 0:01:05]} 17. Ra4 {[%clk 0:01:54]}  Nxd3 {[%clk 0:00:58]} 18. cxd3 {[%clk 0:01:45]}  d4 {[%clk 0:00:53]} 19. Nxd4 {[%clk 0:01:43]}  Nb6 {[%clk 0:00:49]} 20. Raa1 {[%clk 0:01:38]}  Rad8 {[%clk 0:00:43]} 21. Nde2 {[%clk 0:01:37]}  Qc6 {[%clk 0:00:39]} 22. Rf2 {[%clk 0:01:33]}  Rd7 {[%clk 0:00:24]} 23. d4 {[%clk 0:00:34]}  Nc4 {[%clk 0:00:22]} 24. Qg3 {[%clk 0:00:33]}  Nxb2 {[%clk 0:00:23]} 25. f5 {[%clk 0:00:27]}  exf5 {[%clk 0:00:20]} 26. Nf4 {[%clk 0:00:28]}  Nc4 {[%clk 0:00:09]} 27. Nh5 {[%clk 0:00:19]}  Qg6 {[%clk 0:00:09]} 28. Nf4 {[%clk 0:00:04]}  Qxg3 {[%clk 0:00:08]} 29. hxg3 {[%clk 0:00:05]}  Rxd4 {[%clk 0:00:08]} 30. Re1 {[%clk 0:00:05]}  Re8 {[%clk 0:00:06]} 31. Nh5 {[%clk 0:00:03]}  Rxe5 {[%clk 0:00:05]} 32. Rxe5 {[%clk 0:00:03]}  Nxe5 {[%clk 0:00:06]} 33. Rxf5 {[%clk 0:00:03]}  Ng4 {[%clk 0:00:04]} 34. Kf1 {[%clk 0:00:01]}  g6 {[%clk 0:00:03]} 0-1


[Site "https://www.chess.com"]

[Event "Titled Tuesday Blitz April 4 Late 2023"]
[White "Papayan, Oleg"]
[Black "Skvortsov, Andrei"]
[WhiteFideId "4193911"]
[BlackFideId "24108600"]
[WhiteElo "2153"]
[BlackElo "2259"]
[Result "0-1"]
[Round "07"]
[TimeControl "180+2"]
[Date "2023.04.04"]
[WhiteClock "0:00:01"]
[BlackClock "0:01:29"]

1. e4 {[%clk 0:03:00]}  e6 {[%clk 0:02:59]} 2. d4 {[%clk 0:03:01]}  d5 {[%clk 0:03:00]} 3. Nc3 {[%clk 0:03:01]}  Nf6 {[%clk 0:02:56]} 4. Bg5 {[%clk 0:03:00]}  dxe4 {[%clk 0:02:55]} 5. Nxe4 {[%clk 0:03:01]}  Nbd7 {[%clk 0:02:55]} 6. Nxf6+ {[%clk 0:02:55]}  Nxf6 {[%clk 0:02:54]} 7. Nf3 {[%clk 0:02:41]}  c5 {[%clk 0:02:52]} 8. dxc5 {[%clk 0:02:28]}  Qxd1+ {[%clk 0:02:49]} 9. Rxd1 {[%clk 0:02:29]}  Bxc5 {[%clk 0:02:49]} 10. Bb5+ {[%clk 0:02:24]}  Ke7 {[%clk 0:02:49]} 11. O-O {[%clk 0:02:17]}  a6 {[%clk 0:02:45]} 12. Be2 {[%clk 0:02:11]}  Rd8 {[%clk 0:02:42]} 13. Rxd8 {[%clk 0:02:03]}  Kxd8 {[%clk 0:02:43]} 14. Ne5 {[%clk 0:01:59]}  Ke8 {[%clk 0:02:42]} 15. c3 {[%clk 0:01:28]}  Nd7 {[%clk 0:02:33]} 16. Nxd7 {[%clk 0:01:26]}  Bxd7 {[%clk 0:02:34]} 17. Bf3 {[%clk 0:01:26]}  Bc6 {[%clk 0:02:31]} 18. Bxc6+ {[%clk 0:01:25]}  bxc6 {[%clk 0:02:32]} 19. Rd1 {[%clk 0:01:01]}  f6 {[%clk 0:02:30]} 20. Bf4 {[%clk 0:00:54]}  e5 {[%clk 0:02:29]} 21. Bc1 {[%clk 0:00:49]}  Ke7 {[%clk 0:02:26]} 22. Kf1 {[%clk 0:00:49]}  Rb8 {[%clk 0:02:24]} 23. Ke2 {[%clk 0:00:48]}  Ke6 {[%clk 0:02:24]} 24. g4 {[%clk 0:00:42]}  g6 {[%clk 0:02:23]} 25. f3 {[%clk 0:00:36]}  Rh8 {[%clk 0:02:18]} 26. Be3 {[%clk 0:00:33]}  Be7 {[%clk 0:02:18]} 27. f4 {[%clk 0:00:18]}  h5 {[%clk 0:02:17]} 28. g5 {[%clk 0:00:11]}  exf4 {[%clk 0:02:16]} 29. gxf6 {[%clk 0:00:12]}  Bd6 {[%clk 0:02:12]} 30. Bd4 {[%clk 0:00:11]}  Rf8 {[%clk 0:02:08]} 31. b4 {[%clk 0:00:10]}  g5 {[%clk 0:02:07]} 32. Kf3 {[%clk 0:00:08]}  g4+ {[%clk 0:02:06]} 33. Ke4 {[%clk 0:00:08]}  f3 {[%clk 0:02:07]} 34. h3 {[%clk 0:00:07]}  Bc7 {[%clk 0:01:53]} 35. hxg4 {[%clk 0:00:08]}  hxg4 {[%clk 0:01:54]} 36. Rg1 {[%clk 0:00:08]}  Rg8 {[%clk 0:01:54]} 37. c4 {[%clk 0:00:09]}  Bh2 {[%clk 0:01:50]} 38. Rh1 {[%clk 0:00:06]}  g3 {[%clk 0:01:46]} 39. Kxf3 {[%clk 0:00:07]}  g2 {[%clk 0:01:46]} 40. Re1+ {[%clk 0:00:08]}  Kf5 {[%clk 0:01:43]} 41. Bg1 {[%clk 0:00:08]}  Bd6 {[%clk 0:01:37]} 42. c5 {[%clk 0:00:04]}  Be5 {[%clk 0:01:36]} 43. f7 {[%clk 0:00:03]}  Rf8 {[%clk 0:01:37]} 44. Kxg2 {[%clk 0:00:04]}  Bf6 {[%clk 0:01:34]} 45. Rf1+ {[%clk 0:00:03]}  Ke6 {[%clk 0:01:32]} 46. Bh2 {[%clk 0:00:02]}  Rxf7 {[%clk 0:01:32]} 47. Bd6 {[%clk 0:00:02]}  Rg7+ {[%clk 0:01:31]} 48. Kf3 {[%clk 0:00:03]}  Rh7 {[%clk 0:01:32]} 49. Re1+ {[%clk 0:00:02]}  Kd5 {[%clk 0:01:31]} 50. Re8 {[%clk 0:00:02]}  Rh3+ {[%clk 0:01:31]} 51. Kg4 {[%clk 0:00:03]}  Ra3 {[%clk 0:01:30]} 52. Re2 {[%clk 0:00:01]}  Bc3 {[%clk 0:01:29]} 0-1


[Site "https://www.chess.com"]